Cogmind - Beta 10.2 @@@ ROGUE MODE // 2021.06.20 @ 22:38:04 Player: Enzo Result: Destroyed by S-10 Pest with Light Assault Rifle Performance ------------- Evolutions (0) 0 Regions Visited (2) 400 Robots Destroyed (33) 165 Value Destroyed (648) 648 Prototype IDs (2) 40 Alien Tech Used (0) 0 Bonus (0) 0 TOTAL SCORE: 1253 Bonus ------- None Cogmind --------- Core Integrity 0/250 Matter 288/300 Energy 265/265 System Corruption 0% Temperature Cool (1) Movement Walking (180) Ox2 Location -10/Mines Parts ------- > --- POWER (1) -------- Improved Ion Engine > --- PROPULSION (2) --- Aluminum Leg Aluminum Leg > --- UTILITY (2) ------ Large Storage Unit High-capacity Storage Unit > --- WEAPON (2) ------- Assault Rifle Light Assault Rifle > --- INVENTORY (18) --- Improved Ion Engine Structural Scanner Improved Terrain Scanner Terrain Scan Processor Medium Armor Plating Medium Armor Plating Mining Laser Peak State ------------ > --- POWER ------------ Improved Ion Engine > --- PROPULSION ------- Wheel Wheel > --- UTILITY ---------- Large Storage Unit High-capacity Storage Unit > --- WEAPON ----------- Medium Laser Assault Rifle > --- INVENTORY -------- Improved Ion Engine Improved Terrain Scanner Medium Armor Plating Medium Armor Plating Assault Rifle Mining Laser [Rating: 9] Favorites ----------- Power Improved Ion Engine Engine Improved Ion Engine Propulsion Wheel Leg Aluminum Leg Wheel Wheel Utility Large Storage Unit Storage Large Storage Unit Weapon Assault Rifle Energy Gun Medium Laser Energy Cannon Beam Cannon Ballistic Gun Assault Rifle Build | -11 -10 -10 ------- Run | Scr Mat Min Slots Evolved . | . . . Power . | . . . Propulsion . | . . . Utility . | . . . Weapon . | . . . Parts Attached 22 | 6 8 8 Power 2 | 1 1 . Engine 2 | 1 1 . Core . | . . . Reactor . | . . . Propulsion 7 | 2 1 4 Treads . | . . . Leg 3 | . . 3 Wheel 4 | 2 1 1 Hover . | . . . Flight . | . . . Utility 4 | 1 3 . Device . | . . . Storage 4 | 1 3 . Processor . | . . . Hackware . | . . . Protection . | . . . Artifact . | . . . Weapon 9 | 2 3 4 Energy Gun 3 | . 1 2 Energy Cannon 1 | . 1 . Ballistic Gun 5 | 2 1 2 Ballistic Cannon . | . . . Launcher . | . . . Special Weapon . | . . . Impact Weapon . | . . . Slashing Weapon . | . . . Piercing Weapon . | . . . Special Melee Weapon . | . . . Unidentified Prototypes . | . . . Parts Lost 8 | . 1 7 Power . | . . . Propulsion 4 | . 1 3 Utility . | . . . Weapon 4 | . . 4 Highest Loss Streak 4 | . 1 4 Average Slot Usage (%) 95 | . 97 92 Engine 14 | . 14 14 Leg 5 | . . 12 Wheel 19 | . 26 9 Storage 27 | . 27 28 Energy Gun 6 | . 6 6 Energy Cannon 2 | . . 5 Ballistic Gun 18 | . 21 14 Naked Turns . | . . . Heaviest Build 60 | 12 60 60 Greatest Support 20 | 20 20 20 Greatest Overweight (x) 18 | . 5 18 Average Overweight (x) 2 | . 1 3 Largest Inventory Capacity 18 | 6 18 18 Average Capacity 16 | 5 17 18 Most Carried 10 | 4 9 10 Average Carried 6 | 1 5 7 Final Capacity 18 | 6 18 18 Final Carried 9 | 4 9 7 Class Distribution -------------------- 100% | Mutant Dominant Class ---------------- Mutant | -10/Materials Mutant | -10/Mines Resources | -11 -10 -10 ----------- Run | Scr Mat Min Matter Collected 676 | 288 217 171 Remotely . | . . . Salvage Created 978 | 155 489 334 Parts 74 | 7 38 29 Haulers Intercepted 1 | . 1 . Recyclers Shooed . | . . . Parts Field Recycled . | . . . Retrieved Matter . | . . . Parts Self-Destructed . | . . . Prevented . | . . . Kills | -11 -10 -10 ------- Run | Scr Mat Min Combat Hostiles Destroyed 24 | . 11 13 Guns 20 | . 11 9 Cannons 4 | . . 4 Classes Destroyed 8 | 2 6 . Builder 2 | . 1 1 Tunneler 3 | 3 . . Hauler 1 | . 1 . Recycler 1 | 1 . . Operator 1 | . 1 . Watcher 1 | . 1 . Swarmer 12 | . 3 9 Grunt 12 | . 8 4 Best Kill Streak 4 | 4 3 3 Combat Bots Only 3 | . 3 3 Max Kills in Single Turn 2 | 1 1 2 Gunslinging 1 | . . 1 Exploded . | . . . Melee . | . . . Uniques/NPCs Destroyed . | . . . Combat | -11 -10 -10 -------- Run | Scr Mat Min Damage Taken 1021 | . 356 665 Core 253 | . 68 185 Absorbed by Shields . | . . . Core Remaining (%) 100 | 100 . . Volleys Fired 92 | 7 41 44 Largest 2 | 2 2 2 Hottest 80 | 40 80 80 Shots Fired 173 | 14 82 77 Gun 151 | 14 81 56 Cannon 22 | . 1 21 Launcher . | . . . Special . | . . . Kinetic 124 | 14 63 47 Thermal 49 | . 19 30 Explosive . | . . . Electromagnetic . | . . . Robot Hit Streak 9 | 5 9 7 Robot Miss Streak 4 | 1 4 4 Penetration Max . | . . . Secondary Targets 1 | . . 1 Max Gunslinging Chain 1 | . . 1 Shots Hit Robots 103 | 10 51 42 Core Hits 47 | 5 24 18 Critical Hits 1 | . 1 . Critical Kills 1 | . 1 . Critical Parts Destroyed . | . . . Melee Attacks . | . . . Impact . | . . . Slashing . | . . . Piercing . | . . . Sneak Attacks . | . . . Combat Hostiles . | . . . Follow-up Attacks . | . . . Damage Inflicted 1379 | 101 664 614 Guns 1117 | 101 664 352 Cannons 262 | . . 262 Explosions . | . . . Melee . | . . . Ramming . | . . . Kinetic 857 | 101 477 279 Thermal 522 | . 187 335 Explosive . | . . . Electromagnetic . | . . . Impact . | . . . Slashing . | . . . Piercing . | . . . Highest Corruption . | . . . Average Corruption . | . . . Corruption Purged . | . . . Overload Shots . | . . . Overflow Damage . | . . . Projectiles . | . . . Explosions . | . . . Melee . | . . . Knockbacks . | . . . Impact . | . . . Kinetic . | . . . Secondary . | . . . Self-Inflicted Damage . | . . . Shots . | . . . Rammed . | . . . Targets Rammed . | . . . Kicked . | . . . Crushed . | . . . Highest Temperature 150 | . 108 150 Average Temperature 45 | . 31 52 Received Heat Transfer 366 | . 126 240 Siege Activations . | . . . Robots Corrupted . | . . . Combat Hostiles . | . . . Parts Fried . | . . . Impact Corruptions . | . . . Robots Melted . | . . . Combat Hostiles . | . . . Parts Melted . | . . . Heat Transferred 1296 | . 555 741 Parts Sabotaged . | . . . Parts Stolen . | . . . Parts Stripped . | . . . Power Chain Reactions . | . . . Missiles Intercepted . | . . . Alert | -11 -10 -10 ------- Run | Scr Mat Min Peak Influence 307 | 20 199 307 Initial 77 | . 13 77 Average 130 | 8 89 210 Maximum Alert Level 1 | . . 1 Low Security (%) 74 | 100 100 33 Level 1 25 | . . 66 Level 2 . | . . . Level 3 . | . . . Level 4 . | . . . Level 5 . | . . . High Security . | . . . Max Security . | . . . Squads Dispatched 3 | . 3 . Investigation 1 | . 1 . Extermination . | . . . Reinforcement 2 | . 2 . Assault . | . . . Garrison . | . . . Intercept . | . . . Construction Impeded . | . . . Haulers Reinforced . | . . . Stealth | -11 -10 -10 --------- Run | Scr Mat Min Distress Signals 1 | . 1 . Communications Jammed . | . . . Distress Signals . | . . . Times Spotted 35 | . 17 18 Peak Tracking Total 3 | . 3 3 Tactical Retreats 4 | . 2 2 Traps | -11 -10 -10 ------- Run | Scr Mat Min Traps Triggered 3 | . 3 . Indirectly . | . . . Trap Hack Attempts . | . . . Triggered . | . . . Disarmed . | . . . Reprogrammed . | . . . Reused . | . . . Traps Extracted . | . . . Installed . | . . . Triggered . | . . . Machines | -11 -10 -10 ---------- Run | Scr Mat Min Machines Disabled 1 | . . 1 Max in Single Turn 1 | . . 1 Machines Sabotaged . | . . . Garrisons Compromised . | . . . Overloaded Fab Kills . | . . . Fab Network Shutdowns . | . . . Hacking | -11 -10 -10 --------- Run | Scr Mat Min Machines Accessed 1 | . 1 . Terminals 1 | . 1 . Fabricators . | . . . Repair Stations . | . . . Recycling Units . | . . . Scanalyzers . | . . . Garrison Access . | . . . Total Hacks 4 | . 4 . Successful 3 | . 3 . Failed 1 | . 1 . Catastrophic . | . . . Database Lockouts . | . . . Manual 2 | . 2 . Terminals 4 | . 4 . Fabricators . | . . . Repair Stations . | . . . Recycling Units . | . . . Scanalyzers . | . . . Garrison Access . | . . . Terminal Hacks 2 | . 2 . Prototype ID Bank 1 | . 1 . Locate Traps 1 | . 1 . Fabricator Hacks . | . . . Repair Station Hacks . | . . . Recycling Unit Hacks . | . . . Scanalyzer . | . . . Garrison Access Hacks . | . . . Unauthorized Hacks 1 | . 1 . Terminals 1 | . 1 . Botnet 1 | . 1 . Fabricators . | . . . Repair Stations . | . . . Recycling Units . | . . . Scanalyzers . | . . . Garrison Access . | . . . Data Cores Recovered . | . . . Used . | . . . Hacking Detections 1 | . 1 . Full Trace Events . | . . . Feedback Events . | . . . Feedback Blocked . | . . . Robot Schematics Acquired . | . . . Robots Built . | . . . Matter . | . . . Time . | . . . Total Robot Build Rating . | . . . Part Schematics Acquired . | . . . Parts Built . | . . . Matter . | . . . Time . | . . . Total Part Build Rating . | . . . Parts Repaired . | . . . Time . | . . . Parts Recycled . | . . . Recycled Matter . | . . . Retrieved Matter . | . . . Retrieved Components . | . . . Parts Scanalyzed . | . . . Part Schematics Acquired . | . . . Parts Damaged . | . . . Bothacking | -11 -10 -10 ------------ Run | Scr Mat Min Used RIF Installer . | . . . Robots Hacked . | . . . Non-combat . | . . . Combat . | . . . Robot Hacks Applied . | . . . Relay Couplers Released . | . . . Robots Rewired . | . . . Allies Hacked . | . . . Hacks Repelled . | . . . Allies | -11 -10 -10 -------- Run | Scr Mat Min Total Allies . | . . . Largest Group . | . . . Highest-Rated Group . | . . . Highest-Rated Ally . | . . . Total Orders . | . . . Ally Attacks . | . . . Total Damage . | . . . Kills . | . . . Allies Corrupted . | . . . Allies Melted . | . . . Intel | -11 -10 -10 ------- Run | Scr Mat Min Robot Analysis Total . | . . . Derelict Logs Recovered 1 | . . 1 Drone Launches . | . . . Drone Recoveries . | . . . Exploration | -11 -10 -10 ------------- Run | Scr Mat Min Turns Passed 1384 | 108 738 538 Spaces Moved 896 | 86 569 241 Core 13 | 10 . 3 Treads . | . . . Legs 107 | . . 107 Wheels 776 | 76 569 131 Hover . | . . . Flight . | . . . Fastest Speed 50 | 50 80 100 Average Speed 114 | 76 99 164 Slowest Speed 950 | 80 130 950 Overloaded Moves . | . . . Propulsion Burnouts . | . . . Robots Hopped . | . . . Cave-ins Triggered . | . . . Exploration Rate (%) 42 | 5 80 42 Regions Visited 2 Branch Regions 1 Pre-discovered Areas 1 | . . 1 Known Exits Taken . | . . . Unknown Exits Taken 2 | 1 1 . Scrap Searched 1 | . . 1 Spaces Dug . | . . . Terrain Destroyed . | . . . Melee . | . . . Projectile . | . . . AOE . | . . . Terrain Rammed . | . . . Walls Destroyed . | . . . Machines Disabled . | . . . Actions | -11 -10 -10 --------- Run | Scr Mat Min Total 1080 | 112 662 306 Wait 53 | 8 33 12 Move 894 | 85 568 241 Hop . | . . . Pick Up 10 | 5 5 . Fast Attach 19 | 6 8 5 Attach 2 | . . 2 Detach 1 | . 1 . Swap 1 | . . 1 Drop 8 | 1 6 1 Fire 92 | 7 41 44 Melee . | . . . Ram . | . . . Kick . | . . . Crush . | . . . Escape Stasis . | . . . Rewire . | . . . Trap . | . . . Miscellaneous . | . . . Route ------- -11/Scrapyard -10/Materials (discovered 4 exits: [*Mat x2] / [*Min x2]) -10/Mines (discovered 1 exit: [*Mat]) History --------- Turn | Location | Event 4 | -11/Scrapyard | Discovered new exit (range 15) 109 | -11/Scrapyard | Entered Materials 307 | -10/Materials | Build established: Mutant 319 | -10/Materials | Discovered new exit (range 14) 414 | -10/Materials | Discovered new exit (range 7) 455 | -10/Materials | Discovered new exit (range 5) 821 | -10/Materials | Discovered new exit (range 6) 847 | -10/Materials | Entered Mines 866 | -10/Mines | Learned location of Mines (-8) 1056 | -10/Mines | Core integrity fell below 50% 1082 | -10/Mines | Core integrity fell below 20% 1128 | -10/Mines | Lost 4 parts (2n2w) 1377 | -10/Mines | Discovered new exit (range 7) 1385 | -10/Mines | Destroyed by S-10 Pest with Light Assault Rifle Last Messages --------------- 01193_ Acquired 8 matter. 01212_ Acquired 15 matter. 01228_ Acquired Aluminum Leg. 01231_ Acquired 10 matter. 01240_ G-47 Trooper destroyed. 01247_ Acquired 3 matter. 01334_ T-07 Excavator is excavating. 01342_ Core Extractor disabled. 01354_ S-10 Pest destroyed. 01354_ Switching to secondary target: S-10 Pest. 01354_ S-10 Pest destroyed. 01355_ Sml. Laser destroyed. 01361_ S-10 Pest destroyed. 01363_ Acquired 13 matter. 01368_ T-07 Excavator is excavating. 01370_ Acquired Lgt. Assault Rifle. 01372_ T-07 Excavator is excavating. 01373_ Acquired 10 matter. 01377_ EXIT=FOUND 01378_ S-10 Pest: "SECOND INTRUDER APPROACHING. ELIMINATE." Map ----- +----------------------------------------------------+ | ????????????????????????????????????????????? | | ????????????????????????????????????????????? | | ????????????????????????????????????????????? | | ????????????????????????????????????????????? | | ????????????????????????????????????????????? | | ????????????????????????????????????????????? | | ????????????????????????????????????????????? | | ????????????????????????????????????????????? | | ????????????????????????????????????????????? | | ????????????????????????????????????????????? | | ????????????????????????????????????????????? | | ????????????????????????????????????????????? | | ????????????????????????????????????????????? | | ????????????????????????????????????????????? | | ????????????????????????????????????????????? | | ?????????????????????#??????????????????????? | | ????????????????????# ??????????????????????? | | ???????????????????# ??????????????????????? | | ??????????????????? < ??????????????????????? | | ???????????????????# #??????????????????????? | | ???????????????????# #??????????????????????? | | ???????????????????# #??????????????????????? | | ??????????????????? s#????#######???????????? | | ???????????????????#s#?? #???????????? | | ?????????????????###s# ????????????? | | ?????# ######## @ """ ""???????????????? | | ?????# ==### "" ""???????????????? | | ??????# ########%#????"" ""???????????????? | | ?????????????????#[#?????? ??????????????? | | ??????????????####%#???????? ??????????????? | | ?????????????## # ##???????????????????????? | | ?????????????# ##??????????????????????? | | ?????????????# #??????????????????????? | | ?????????????## #??????????????????????? | | ??????????????## ##??????????????????????? | | ???????????????### #???????????????????????? | | ?????????????????# #???????????????????????? | | ?????????????????# #???????????????????????? | | ?????????????????# #???????????????????????? | | ?????????????????# ##??????????????????????? | | ????????????????## #??????????????????????? | | ????????????##### ##????????????? ??????? | | ???????????## #????????###?# ???? | | ???????????# #???????# ## #??? | | ???????????# #??????? #??? | | ??????????## ##?????## #??? | | ?????????## ####?????## ??? | | ?????##### ##???????## ? ???? | | ????## ##???????# ??? ???? | | ???## ##??????# #????# #???? | +----------------------------------------------------+ Best States ------------- Heat Dissipation 25 Energy Generation 12 Energy Capacity 265 Matter Stores 300 Matter Capacity 300 Sight Range 16 Terrain Scan Density 10 Evasion (%) 44 Item Schematics ----------------- None Robot Schematics ------------------ None Fabricated ------------ Nothing Alien Tech Used ----------------- None Achievements -------------- None Challenges ------------ None Game ------ Seed TerrainFortressThruster Manual? 0 Play Time 00:10:23 Cumulative 52.1 hours Start 2021.06.20 @ 22:30:02 End 2021.06.20 @ 22:38:04 Sessions 1 Manual Loads 0 Difficulty Rogue Special Mode None Game No. 117 Rogue 117 Adventurer 0 Explorer 0 Win Type - Total 0 Types 0/0/0/0/0/0/0/0/0 Lore% 41 Gallery% 44 Achievement% 35 Wizard Run 0 Options --------- ASCII 0 Keyboard 0 Movement Numpad Keybinds 0 Fullscreen 2 Font 24/Smallcaps Map View 76x50 Tactical HUD 1 Map Filters NONE Filters NONE Steam 1 RUN: f97a3094-5516-41fa-bdf2-a3eb2df9e98f